Cogmind - Beta 9 @@@ ROGUE MODE // 2019.10.26 @ 23:18:49 Player: blerp Result: Destroyed by as-19338 with Assembled Heavy Rifle Performance ------------- Evolutions (0) 0 Regions Visited (0) 0 Robots Destroyed (0) 0 Value Destroyed (0) 0 Prototype IDs (0) 0 Alien Tech Used (0) 0 Bonus (0) 0 TOTAL SCORE: 0 Bonus ------- None Cogmind --------- Core Integrity 0/250 Matter 300/300 Energy 98/100 System Corruption 0% Temperature Cool (0) Location -11/Scrapyard Parts ------- Power (1) Propulsion (2) Utility (2) Weapon (2) Inventory (4) Ion Engine Small Storage Unit Assault Rifle Peak State ------------ Power Light Ion Engine Propulsion Aluminum Leg Aluminum Leg Utility (None) Weapon Medium Laser Small Laser Inventory Ion Engine Small Storage Unit Assault Rifle [Rating: 5] Favorites ----------- Power Light Ion Engine Engine Light Ion Engine Propulsion Aluminum Leg Leg Aluminum Leg Utility None Weapon Small Laser Energy Gun Small Laser Build | -11 ------- Run | Scr Slots Evolved . | . Power . | . Propulsion . | . Utility . | . Weapon . | . Parts Attached 5 | 5 Power 1 | 1 Engine 1 | 1 Core . | . Reactor . | . Propulsion 2 | 2 Treads . | . Leg 2 | 2 Wheel . | . Hover . | . Flight . | . Utility . | . Device . | . Storage . | . Processor . | . Hackware . | . Protection . | . Artifact . | . Weapon 2 | 2 Energy Gun 2 | 2 Energy Cannon . | . Ballistic Gun . | . Ballistic Cannon . | . Launcher . | . Special Weapon . | . Impact Weapon . | . Slashing Weapon . | . Piercing Weapon . | . Special Melee Weapon . | . Unidentified Prototypes . | . Parts Lost 3 | 3 Power 1 | 1 Propulsion . | . Utility . | . Weapon 2 | 2 Highest Loss Streak 3 | 3 Average Slot Usage (%) . | . Naked Turns . | . Heaviest Build 6 | 6 Greatest Support 20 | 20 Greatest Overweight (x) . | . Average Overweight (x) . | . Largest Inventory Capacity 4 | 4 Average Capacity 4 | 4 Most Carried 4 | 4 Average Carried 2 | 2 Final Capacity 4 | 4 Final Carried 3 | 3 Class Distribution -------------------- None Dominant Class ---------------- None Resources | -11 ----------- Run | Scr Matter Collected 250 | 250 Remotely . | . Salvage Created . | . Parts . | . Haulers Intercepted . | . Recyclers Shooed . | . Parts Field Recycled . | . Retrieved Matter . | . Parts Self-Destructed . | . Prevented . | . Kills | -11 ------- Run | Scr Combat Hostiles Destroyed . | . Classes Destroyed . | . Best Kill Streak . | . Combat Bots Only . | . Max Kills in Single Turn . | . Gunslinging . | . Exploded . | . Melee . | . Uniques/NPCs Destroyed . | . Combat | -11 -------- Run | Scr Damage Taken 533 | 533 Core 261 | 261 Absorbed by Shields . | . Core Remaining (%) . | . Volleys Fired 5 | 5 Largest 2 | 2 Hottest 90 | 90 Shots Fired 8 | 8 Gun 8 | 8 Cannon . | . Launcher . | . Special . | . Kinetic . | . Thermal 8 | 8 Explosive . | . Electromagnetic . | . Robot Hit Streak 1 | 1 Robot Miss Streak 3 | 3 Penetration Max . | . Secondary Targets . | . Shots Hit Robots 3 | 3 Core Hits 1 | 1 Critical Hits . | . Critical Kills . | . Critical Parts Destroyed . | . Melee Attacks . | . Impact . | . Slashing . | . Piercing . | . Sneak Attacks . | . Combat Hostiles . | . Follow-up Attacks . | . Damage Inflicted 36 | 36 Guns 35 | 35 Cannons . | . Explosions . | . Melee . | . Ramming 1 | 1 Kinetic . | . Thermal 35 | 35 Explosive . | . Electromagnetic . | . Impact . | . Slashing . | . Piercing . | . Highest Corruption . | . Average Corruption . | . Corruption Purged . | . Overload Shots . | . Overflow Damage . | . Projectiles . | . Explosions . | . Melee . | . Knockbacks . | . Impact . | . Kinetic . | . Secondary . | . Self-Inflicted Damage . | . Shots . | . Rammed 1 | 1 Targets Rammed 2 | 2 Kicked 1 | 1 Crushed . | . Highest Temperature 90 | 90 Average Temperature 57 | 57 Received Heat Transfer 80 | 80 Siege Activations . | . Robots Corrupted . | . Combat Hostiles . | . Parts Fried . | . Impact Corruptions . | . Robots Melted . | . Combat Hostiles . | . Parts Melted . | . Heat Transferred 99 | 99 Parts Sabotaged . | . Parts Stolen . | . Parts Stripped . | . Power Chain Reactions . | . Missiles Intercepted . | . Alert | -11 ------- Run | Scr Peak Influence 30 | 30 Average Influence . | . Maximum Alert Level . | . Low Security (%) 100 | . Level 1 . | . Level 2 . | . Level 3 . | . Level 4 . | . Level 5 . | . High Security . | . Max Security . | . Squads Dispatched . | . Investigation . | . Extermination . | . Reinforcement . | . Assault . | . Garrison . | . Intercept . | . Construction Impeded . | . Haulers Reinforced . | . Stealth | -11 --------- Run | Scr Distress Signals . | . Communications Jammed . | . Distress Signals . | . Times Spotted 17 | 17 Peak Tracking Total 13 | 13 Tactical Retreats 1 | 1 Traps | -11 ------- Run | Scr Traps Triggered . | . Indirectly . | . Trap Hack Attempts . | . Triggered . | . Disarmed . | . Reprogrammed . | . Reused . | . Traps Extracted . | . Installed . | . Triggered . | . Machines | -11 ---------- Run | Scr Machines Disabled . | . Max in Single Turn . | . Machines Sabotaged . | . Garrisons Compromised . | . Overloaded Fab Kills . | . Fab Network Shutdowns . | . Hacking | -11 --------- Run | Scr Machines Accessed . | . Terminals . | . Fabricators . | . Repair Stations . | . Recycling Units . | . Scanalyzers . | . Garrison Access . | . Total Hacks . | . Successful . | . Failed . | . Catastrophic . | . Database Lockouts . | . Manual . | . Terminals . | . Fabricators . | . Repair Stations . | . Recycling Units . | . Scanalyzers . | . Garrison Access . | . Terminal Hacks . | . Fabricator Hacks . | . Repair Station Hacks . | . Recycling Unit Hacks . | . Scanalyzer . | . Garrison Access Hacks . | . Unauthorized Hacks . | . Terminals . | . Fabricators . | . Repair Stations . | . Recycling Units . | . Scanalyzers . | . Garrison Access . | . Data Cores Recovered . | . Used . | . Hacking Detections . | . Full Trace Events . | . Feedback Events . | . Feedback Blocked . | . Robot Schematics Acquired . | . Robots Built . | . Matter . | . Time . | . Total Robot Build Rating . | . Part Schematics Acquired . | . Parts Built . | . Matter . | . Time . | . Total Part Build Rating . | . Parts Repaired . | . Time . | . Parts Recycled . | . Recycled Matter . | . Retrieved Matter . | . Retrieved Components . | . Parts Scanalyzed . | . Part Schematics Acquired . | . Parts Damaged . | . Bothacking | -11 ------------ Run | Scr Used RIF Installer . | . Robots Hacked . | . Non-combat . | . Combat . | . Robot Hacks Applied . | . Relay Couplers Released . | . Robots Rewired . | . Allies Hacked . | . Hacks Repelled . | . Allies | -11 -------- Run | Scr Total Allies . | . Largest Group . | . Highest-Rated Group . | . Highest-Rated Ally . | . Total Orders . | . Ally Attacks . | . Total Damage . | . Kills . | . Allies Corrupted . | . Allies Melted . | . Intel | -11 ------- Run | Scr Robot Analysis Total . | . Derelict Logs Recovered . | . Drone Launches . | . Drone Recoveries . | . Exploration | -11 ------------- Run | Scr Turns Passed 1675 | 1675 Spaces Moved 879 | 879 Core 30 | 30 Treads . | . Legs 849 | 849 Wheels . | . Hover . | . Flight . | . Fastest Speed 50 | 50 Average Speed 117 | 117 Slowest Speed 120 | 120 Overloaded Moves . | . Propulsion Burnouts . | . Robots Hopped . | . Cave-ins Triggered . | . Exploration Rate (%) 71 | 71 Regions Visited . Branch Regions . Pre-discovered Areas . | . Known Exits Taken . | . Unknown Exits Taken . | . Scrap Searched . | . Spaces Dug . | . Terrain Destroyed . | . Melee . | . Projectile . | . AOE . | . Actions | -11 --------- Run | Scr Total 1511 | 1511 Wait 614 | 614 Move 879 | 879 Hop . | . Pick Up 6 | 6 Fast Attach 2 | 2 Attach 3 | 3 Detach . | . Swap . | . Drop . | . Fire 5 | 5 Melee . | . Ram 1 | 1 Kick 1 | 1 Crush . | . Escape Stasis . | . Rewire . | . Trap . | . Miscellaneous . | . Route ------- -11/Scrapyard (discovered 1 exit: [*Mat]) History --------- Turn | Location | Event 2 | -11/Scrapyard | Met Revision 17 7 | -11/Scrapyard | Discovered new exit (range 15) 1531 | -11/Scrapyard | Assembled infested the area 1666 | -11/Scrapyard | Released all parts (2) 1671 | -11/Scrapyard | Core integrity fell below 50% 1676 | -11/Scrapyard | Core integrity fell below 20% 1676 | -11/Scrapyard | Destroyed by as-19338 with Assembled Heavy Rifle Last Messages --------------- 01145_ K-01 Serf collects debris. 01156_ T-07 Excavator is excavating. 01158_ K-01 Serf collects debris. 01160_ T-07 Excavator is excavating. 01161_ K-01 Serf collects debris. 01290_ T-07 Excavator is excavating. 01306_ K-01 Serf collects debris. 01405_ T-07 Excavator is excavating. 01419_ K-01 Serf collects debris. 01504_ T-07 Excavator is excavating. [Achievement: Curiosity Killed The Cat] 01585_ as-73564 sneak attacks. 01642_ Med. Laser destroyed. 01649_ Sml. Laser destroyed. 01650_ Kicked as-19338 out of the way. 01660_ Knocked back. 01666_ Lgt. Ion Engine destroyed. 01666_ Released Aluminum Leg. 01671_ as-21348 suffers critical hit. 01673_ Slammed into as-60144. Map ----- +----------------------------------------------------+ | ?????????????????????????????????????????????????? | | ?????????????????????????????????????????????????? | | ?????????????????????????????????????????????????? | | ?????????????????????????????????????????????????? | | ?????????????????????????????????????????????????? | | ?????????????????????????????????????????????????? | | ?????????????????????????#???????????????????????? | | ????????????????????????? ??????????????????????? | | ????????????????????????? #?????????????????????? | | ????????????????????????? #####?????????????????? | | ????????????????????????? ## #######?????????? | | ????????????????????????? ## # #?????????? | | ????????????????????????# ## #?????????? | | ????????????????????????# ## # #?????????? | | ????????????????????????# ## ### #?????????? | | ????????????????????????# ########## ##????????? | | ##############??????????# ######### #????????? | | #??????????# = #????????? | | #??????????# #????????? | | ########### ############ ######### #????????? | | ??????????# ##############????????? | | ??????????# # #??????????????? | | ??????????#### ###### ### # #??????????????? | | ?????????????###????###?# #??????????????? | | ????????????????????????# a# #??????????????? | | ????????????????????????#@ # #??????????????? | | ????????????????????????# # #??????????????? | | ????????????????????????# ########??????????????? | | ????????????????????????#a #?????????????????????? | | ????????????????????????#a #?????????????????????? | | ????????????????????????#aa#?????####????????????? | | ????????????????????????#%a#??### #????????????? | | ????????????????????????#a #?? #????????????? | | ??????????############### #? #????????????? | | ??????????# #a #? ###########??? | | ??????????# # # # #??? | | ??????????# #aa# # #??? | | ??????????# # #??? | | ??????????# #a # # #??? | | ??????????# # # # #??? | | ???????????############## a########## #??? | | ????????##########???# #?????# #??? | | ????????# #???# #?????# #??? | | ????????# #???# ########## ######??? | | ######### #####== %% #????? | | =%! = =%| #??### | | ############ #? | | ######### = ##### < #???# # # | | ????????# = #???# #???# # # | | ????????# = #???##########???# | +----------------------------------------------------+ Best States ------------- Heat Dissipation 25 Energy Generation 10 Energy Capacity 125 Matter Stores 300 Matter Capacity 300 Sight Range 16 Terrain Scan Density 10 Evasion (%) 50 Item Schematics ----------------- None Robot Schematics ------------------ None Fabricated ------------ Nothing Alien Tech Used ----------------- None Achievements -------------- Curiosity Killed The Cat Challenges ------------ None Game ------ Seed LobotomyGrenadePropulsion Manual? 0 Play Time 00:15:42 Cumulative 31.2 hours Start 2019.10.26 @ 23:03:34 End 2019.10.26 @ 23:18:49 Sessions 0 Manual Loads 0 Difficulty Rogue Special Mode None Game No. 24 Rogue 24 Adventurer 0 Explorer 0 Win Type - Total 0 Types 0/0/0/0/0/0/0 Lore% 12 Gallery% 26 Achievement% 24 Wizard Run 0 Options --------- ASCII 0 Keyboard 1 Movement Arrows Keybinds 0 Fullscreen 1 Font 16/Terminus Map View 76x50 Tactical HUD 1 Map Filters NONE Filters NONE Steam 1 RUN: 5246ea44-2c59-4652-b8b2-79b58da620b6